[Event "Early Titled Tuesday Blitz | February 8 2022"]
[White "Estrada Nieto, Julian"]
[Black "Dovbnia, Nikita"]
[WhiteFideId "5101018"]
[BlackFideId "54104599"]
[WhiteElo "2246"]
[BlackElo "2111"]
[Result "1-0"]
[Round "04"]
[TimeControl "180+1"]
[Date "2022.02.08"]
[WhiteClock "0:00:28"]
[BlackClock "0:00:17"]

1. e4 {[%clk 0:03:00]}  c5 {[%clk 0:03:00]} 2. Nf3 {[%clk 0:03:00]}  Nc6 {[%clk 0:03:01]} 3. Bb5 {[%clk 0:03:00]}  g6 {[%clk 0:03:00]} 4. Bxc6 {[%clk 0:03:00]}  dxc6 {[%clk 0:03:00]} 5. d3 {[%clk 0:03:00]}  Bg7 {[%clk 0:03:01]} 6. h3 {[%clk 0:03:00]}  Nf6 {[%clk 0:03:00]} 7. Nc3 {[%clk 0:03:00]}  O-O {[%clk 0:02:59]} 8. Be3 {[%clk 0:03:01]}  b6 {[%clk 0:02:58]} 9. Qd2 {[%clk 0:03:01]}  Re8 {[%clk 0:02:47]} 10. O-O {[%clk 0:03:00]}  Ba6 {[%clk 0:02:30]} 11. a4 {[%clk 0:02:57]}  c4 {[%clk 0:02:28]} 12. d4 {[%clk 0:02:56]}  Nxe4 {[%clk 0:01:45]} 13. Nxe4 {[%clk 0:02:55]}  c3 {[%clk 0:01:46]} 14. Nxc3 {[%clk 0:02:47]}  Bxf1 {[%clk 0:01:46]} 15. Rxf1 {[%clk 0:02:46]}  e5 {[%clk 0:01:40]} 16. Nxe5 {[%clk 0:02:33]}  Bxe5 {[%clk 0:01:39]} 17. dxe5 {[%clk 0:02:33]}  Qxd2 {[%clk 0:01:40]} 18. Bxd2 {[%clk 0:02:33]}  Rxe5 {[%clk 0:01:40]} 19. Bf4 {[%clk 0:02:24]}  Re6 {[%clk 0:01:37]} 20. Rd1 {[%clk 0:02:23]}  Rae8 {[%clk 0:01:33]} 21. Be3 {[%clk 0:02:06]}  h5 {[%clk 0:01:21]} 22. Rd7 {[%clk 0:02:04]}  R6e7 {[%clk 0:01:20]} 23. Rxe7 {[%clk 0:02:03]}  Rxe7 {[%clk 0:01:21]} 24. Kf1 {[%clk 0:02:03]}  Rd7 {[%clk 0:01:21]} 25. Ke2 {[%clk 0:02:04]}  f5 {[%clk 0:01:22]} 26. h4 {[%clk 0:02:00]}  Kf7 {[%clk 0:01:22]} 27. Bf4 {[%clk 0:01:57]}  Ke6 {[%clk 0:01:22]} 28. Ke3 {[%clk 0:01:56]}  Kf6 {[%clk 0:01:05]} 29. Ke2 {[%clk 0:01:42]}  Ke6 {[%clk 0:01:04]} 30. g3 {[%clk 0:01:39]}  Rd4 {[%clk 0:00:57]} 31. b3 {[%clk 0:01:36]}  Rd7 {[%clk 0:00:54]} 32. Be3 {[%clk 0:01:26]}  Ke5 {[%clk 0:00:53]} 33. Ke1 {[%clk 0:01:23]}  c5 {[%clk 0:00:44]} 34. Ne2 {[%clk 0:01:18]}  Kf6 {[%clk 0:00:38]} 35. Bg5+ {[%clk 0:01:16]}  Kf7 {[%clk 0:00:37]} 36. Nf4 {[%clk 0:01:12]}  Rc7 {[%clk 0:00:33]} 37. c4 {[%clk 0:01:12]}  Rd7 {[%clk 0:00:33]} 38. Nd5 {[%clk 0:01:11]}  Ke6 {[%clk 0:00:32]} 39. Ke2 {[%clk 0:01:10]}  Rd6 {[%clk 0:00:31]} 40. Bf4 {[%clk 0:01:09]}  Rd7 {[%clk 0:00:31]} 41. Ke3 {[%clk 0:01:09]}  Kf7 {[%clk 0:00:28]} 42. Be5 {[%clk 0:01:05]}  Ke6 {[%clk 0:00:28]} 43. Kf4 {[%clk 0:01:01]}  Kf7 {[%clk 0:00:25]} 44. Kg5 {[%clk 0:00:59]}  Ke6 {[%clk 0:00:24]} 45. Bc3 {[%clk 0:00:53]}  Kf7 {[%clk 0:00:24]} 46. Kf4 {[%clk 0:00:49]}  Ke6 {[%clk 0:00:22]} 47. Bb2 {[%clk 0:00:42]}  Kf7 {[%clk 0:00:21]} 48. Ke5 {[%clk 0:00:41]}  Rb7 {[%clk 0:00:19]} 49. Kd6 {[%clk 0:00:38]}  Rb8 {[%clk 0:00:18]} 50. Be5 {[%clk 0:00:34]}  Rd8+ {[%clk 0:00:17]} 51. Kc7 {[%clk 0:00:33]}  Re8 {[%clk 0:00:18]} 52. f4 {[%clk 0:00:33]}  Re6 {[%clk 0:00:17]} 53. Kb7 {[%clk 0:00:32]}  Rd6 {[%clk 0:00:17]} 54. Kxa7 {[%clk 0:00:31]}  Rd7+ {[%clk 0:00:15]} 55. Kxb6 {[%clk 0:00:30]}  Ke6 {[%clk 0:00:16]} 56. Kxc5 {[%clk 0:00:29]}  Rb7 {[%clk 0:00:16]} 57. b4 {[%clk 0:00:29]}  Ra7 {[%clk 0:00:16]} 58. a5 {[%clk 0:00:29]}  Rb7 {[%clk 0:00:16]} 59. a6 {[%clk 0:00:29]}  Ra7 {[%clk 0:00:17]} 60. b5 {[%clk 0:00:29]}  Rh7 {[%clk 0:00:17]} 61. b6 {[%clk 0:00:28]} 1-0


[Site "https://www.chess.com"]

[Event "Early Titled Tuesday Blitz | February 8 2022"]
[White "FGHSMN"]
[Black "Ozkan, Taha"]
[BlackFideId "34577173"]
[WhiteElo "2768"]
[BlackElo "2024"]
[Result "1-0"]
[Round "04"]
[TimeControl "180+1"]
[Date "2022.02.08"]
[WhiteClock "0:00:38"]
[BlackClock "0:01:07"]

1. b3 {[%clk 0:03:00]}  e5 {[%clk 0:02:57]} 2. Bb2 {[%clk 0:02:59]}  e4 {[%clk 0:02:56]} 3. c4 {[%clk 0:02:58]}  f5 {[%clk 0:02:57]} 4. e3 {[%clk 0:02:56]}  Nf6 {[%clk 0:02:57]} 5. Nc3 {[%clk 0:02:56]}  c6 {[%clk 0:02:58]} 6. d3 {[%clk 0:02:55]}  d5 {[%clk 0:02:58]} 7. cxd5 {[%clk 0:02:51]}  cxd5 {[%clk 0:02:58]} 8. dxe4 {[%clk 0:02:50]}  fxe4 {[%clk 0:02:59]} 9. Bb5+ {[%clk 0:02:44]}  Nc6 {[%clk 0:02:59]} 10. Nge2 {[%clk 0:02:43]}  Bd6 {[%clk 0:02:57]} 11. O-O {[%clk 0:02:39]}  Bg4 {[%clk 0:02:54]} 12. h3 {[%clk 0:02:38]}  Be6 {[%clk 0:02:52]} 13. Nd4 {[%clk 0:02:34]}  Bd7 {[%clk 0:02:52]} 14. Be2 {[%clk 0:02:28]}  O-O {[%clk 0:02:50]} 15. Ndb5 {[%clk 0:02:26]}  Bb8 {[%clk 0:02:50]} 16. Nxd5 {[%clk 0:02:24]}  Ne5 {[%clk 0:02:25]} 17. Nxf6+ {[%clk 0:02:18]}  Qxf6 {[%clk 0:02:26]} 18. Qxd7 {[%clk 0:02:10]}  Nxd7 {[%clk 0:02:27]} 19. Bxf6 {[%clk 0:02:10]}  Nxf6 {[%clk 0:02:28]} 20. Rfd1 {[%clk 0:02:08]}  Be5 {[%clk 0:02:27]} 21. Rac1 {[%clk 0:02:08]}  Rfd8 {[%clk 0:02:28]} 22. Rxd8+ {[%clk 0:02:06]}  Rxd8 {[%clk 0:02:29]} 23. Nxa7 {[%clk 0:02:06]}  Rd2 {[%clk 0:02:29]} 24. Bc4+ {[%clk 0:02:05]}  Kf8 {[%clk 0:02:28]} 25. a4 {[%clk 0:02:04]}  g5 {[%clk 0:02:27]} 26. g4 {[%clk 0:01:41]}  Nd7 {[%clk 0:02:25]} 27. Be6 {[%clk 0:01:36]}  Nb6 {[%clk 0:02:14]} 28. Bf5 {[%clk 0:01:34]}  Rb2 {[%clk 0:02:07]} 29. Bxe4 {[%clk 0:01:32]}  Rxb3 {[%clk 0:02:07]} 30. Bxb7 {[%clk 0:01:31]}  Nxa4 {[%clk 0:02:03]} 31. Be4 {[%clk 0:01:30]}  Nc3 {[%clk 0:02:03]} 32. Bf3 {[%clk 0:01:26]}  Rb2 {[%clk 0:01:57]} 33. Nc6 {[%clk 0:01:25]}  Bf6 {[%clk 0:01:57]} 34. Ra1 {[%clk 0:01:20]}  Na2 {[%clk 0:01:48]} 35. Rd1 {[%clk 0:01:18]}  Nc3 {[%clk 0:01:47]} 36. Rd7 {[%clk 0:01:18]}  h6 {[%clk 0:01:46]} 37. Rd6 {[%clk 0:01:08]}  Kf7 {[%clk 0:01:42]} 38. Bd5+ {[%clk 0:01:02]}  Nxd5 {[%clk 0:01:37]} 39. Rxd5 {[%clk 0:01:02]}  Ke6 {[%clk 0:01:38]} 40. Rd1 {[%clk 0:00:58]}  Kf7 {[%clk 0:01:29]} 41. Nd4 {[%clk 0:00:57]}  Ra2 {[%clk 0:01:27]} 42. Nf5 {[%clk 0:00:56]}  Kg6 {[%clk 0:01:25]} 43. Rd6 {[%clk 0:00:56]}  h5 {[%clk 0:01:25]} 44. Ng3 {[%clk 0:00:52]}  hxg4 {[%clk 0:01:22]} 45. Ne4 {[%clk 0:00:51]}  Kf5 {[%clk 0:01:22]} 46. Nxf6 {[%clk 0:00:49]}  gxh3 {[%clk 0:01:23]} 47. Nh5 {[%clk 0:00:40]}  Kg4 {[%clk 0:01:16]} 48. Ng3 {[%clk 0:00:39]}  h2+ {[%clk 0:01:15]} 49. Kg2 {[%clk 0:00:38]}  Rc2 {[%clk 0:01:07]} 50. Rd4# {[%clk 0:00:38]} 1-0


[Site "https://www.chess.com"]

[Event "Early Titled Tuesday Blitz | February 8 2022"]
[White "Farmani Anosheh, Armin"]
[Black "Jaferian, Koosha"]
[WhiteFideId "24613240"]
[BlackFideId "12507440"]
[WhiteElo "2289"]
[BlackElo "2027"]
[Result "0-1"]
[Round "04"]
[TimeControl "180+1"]
[Date "2022.02.08"]
[WhiteClock "0:00:39"]
[BlackClock "0:00:36"]

1. e4 {[%clk 0:03:00]}  c6 {[%clk 0:02:58]} 2. d4 {[%clk 0:02:59]}  d5 {[%clk 0:02:59]} 3. e5 {[%clk 0:03:00]}  Bf5 {[%clk 0:02:58]} 4. h4 {[%clk 0:03:01]}  h5 {[%clk 0:02:59]} 5. Bd3 {[%clk 0:03:00]}  Bxd3 {[%clk 0:02:58]} 6. Qxd3 {[%clk 0:03:01]}  Qa5+ {[%clk 0:02:58]} 7. Nd2 {[%clk 0:03:00]}  e6 {[%clk 0:02:55]} 8. Nf3 {[%clk 0:03:00]}  Nd7 {[%clk 0:02:55]} 9. O-O {[%clk 0:02:57]}  Ne7 {[%clk 0:02:55]} 10. b3 {[%clk 0:02:51]}  Nf5 {[%clk 0:02:54]} 11. c4 {[%clk 0:02:45]}  Be7 {[%clk 0:02:51]} 12. a4 {[%clk 0:02:44]}  Nxh4 {[%clk 0:02:41]} 13. Nxh4 {[%clk 0:02:43]}  Bxh4 {[%clk 0:02:41]} 14. Ba3 {[%clk 0:02:43]}  Qd8 {[%clk 0:02:38]} 15. b4 {[%clk 0:02:35]}  Be7 {[%clk 0:02:34]} 16. b5 {[%clk 0:02:30]}  O-O {[%clk 0:02:32]} 17. Bxe7 {[%clk 0:02:15]}  Qxe7 {[%clk 0:02:33]} 18. c5 {[%clk 0:02:16]}  g6 {[%clk 0:02:06]} 19. Rab1 {[%clk 0:02:15]}  Rab8 {[%clk 0:01:58]} 20. Rb2 {[%clk 0:01:54]}  Kg7 {[%clk 0:01:34]} 21. Rfb1 {[%clk 0:01:45]}  Qg5 {[%clk 0:01:31]} 22. Nb3 {[%clk 0:01:29]}  h4 {[%clk 0:01:24]} 23. Na5 {[%clk 0:01:28]}  Rh8 {[%clk 0:01:18]} 24. Qe3 {[%clk 0:01:09]}  Qg4 {[%clk 0:01:10]} 25. bxc6 {[%clk 0:00:50]}  bxc6 {[%clk 0:00:59]} 26. Nxc6 {[%clk 0:00:47]}  Rxb2 {[%clk 0:00:58]} 27. Rxb2 {[%clk 0:00:46]}  h3 {[%clk 0:00:59]} 28. f3 {[%clk 0:00:42]}  Qg3 {[%clk 0:00:46]} 29. Qf2 {[%clk 0:00:42]}  Qf4 {[%clk 0:00:40]} 30. g3 {[%clk 0:00:41]}  h2+ {[%clk 0:00:36]} 31. Kg2 {[%clk 0:00:39]}  h1=Q# {[%clk 0:00:36]} 0-1


[Site "https://www.chess.com"]

[Event "Early Titled Tuesday Blitz | February 8 2022"]
[White "Fawzy, Adham"]
[Black "Xiong, Jeffery"]
[WhiteFideId "10613129"]
[BlackFideId "2047640"]
[WhiteElo "2510"]
[BlackElo "2727"]
[Result "1/2-1/2"]
[Round "04"]
[TimeControl "180+1"]
[Date "2022.02.08"]
[WhiteClock "0:00:18"]
[BlackClock "0:00:30"]

1. e4 {[%clk 0:03:00]}  c6 {[%clk 0:02:57]} 2. d4 {[%clk 0:03:00]}  d5 {[%clk 0:02:57]} 3. exd5 {[%clk 0:03:01]}  cxd5 {[%clk 0:02:57]} 4. c4 {[%clk 0:03:02]}  Nf6 {[%clk 0:02:57]} 5. Nc3 {[%clk 0:03:02]}  g6 {[%clk 0:02:57]} 6. Qb3 {[%clk 0:03:01]}  Bg7 {[%clk 0:02:57]} 7. cxd5 {[%clk 0:03:01]}  O-O {[%clk 0:02:57]} 8. Be2 {[%clk 0:03:02]}  Na6 {[%clk 0:02:55]} 9. Bf3 {[%clk 0:03:02]}  b5 {[%clk 0:02:56]} 10. Nge2 {[%clk 0:02:58]}  Rb8 {[%clk 0:02:53]} 11. Bf4 {[%clk 0:02:57]}  Rb6 {[%clk 0:02:53]} 12. O-O {[%clk 0:02:53]}  Bb7 {[%clk 0:02:31]} 13. Nxb5 {[%clk 0:02:39]}  Bxd5 {[%clk 0:02:08]} 14. Bxd5 {[%clk 0:02:31]}  Nxd5 {[%clk 0:02:09]} 15. Bd2 {[%clk 0:02:15]}  Nac7 {[%clk 0:02:06]} 16. a4 {[%clk 0:02:14]}  a6 {[%clk 0:02:06]} 17. Ba5 {[%clk 0:02:01]}  Rb7 {[%clk 0:01:55]} 18. Bxc7 {[%clk 0:01:58]}  Nxc7 {[%clk 0:01:54]} 19. Qf3 {[%clk 0:01:57]}  Qd5 {[%clk 0:01:32]} 20. Nxc7 {[%clk 0:00:43]}  Qxf3 {[%clk 0:01:32]} 21. gxf3 {[%clk 0:00:44]}  Rxc7 {[%clk 0:01:32]} 22. Rfc1 {[%clk 0:00:44]}  Rb7 {[%clk 0:01:33]} 23. Ra2 {[%clk 0:00:44]}  Rfb8 {[%clk 0:01:33]} 24. Rc6 {[%clk 0:00:34]}  Rxb2 {[%clk 0:01:32]} 25. Rxb2 {[%clk 0:00:34]}  Rxb2 {[%clk 0:01:33]} 26. Rc8+ {[%clk 0:00:35]}  Bf8 {[%clk 0:01:33]} 27. Nc3 {[%clk 0:00:20]}  Rc2 {[%clk 0:01:26]} 28. Rc7 {[%clk 0:00:19]}  e6 {[%clk 0:01:03]} 29. Nd5 {[%clk 0:00:17]}  Ra2 {[%clk 0:00:27]} 30. Nf6+ {[%clk 0:00:17]}  Kg7 {[%clk 0:00:28]} 31. Ne8+ {[%clk 0:00:17]}  Kg8 {[%clk 0:00:28]} 32. Nf6+ {[%clk 0:00:18]}  Kg7 {[%clk 0:00:29]} 33. Ne8+ {[%clk 0:00:18]}  Kg8 {[%clk 0:00:30]} 34. Nf6+ {[%clk 0:00:18]} 1/2-1/2


[Site "https://www.chess.com"]

[Event "Early Titled Tuesday Blitz | February 8 2022"]
[White "Funderburg, John T"]
[Black "Muradov, Soltan"]
[WhiteFideId "2004992"]
[BlackFideId "14002108"]
[WhiteElo "2021"]
[BlackElo "1854"]
[Result "0-1"]
[Round "04"]
[TimeControl "180+1"]
[Date "2022.02.08"]
[WhiteClock "0:00:02"]
[BlackClock "0:02:02"]

1. d4 {[%clk 0:03:00]}  Nf6 {[%clk 0:02:59]} 2. Nf3 {[%clk 0:03:00]}  e6 {[%clk 0:02:59]} 3. e3 {[%clk 0:02:55]}  b6 {[%clk 0:02:59]} 4. Bd3 {[%clk 0:02:53]}  Bb7 {[%clk 0:03:00]} 5. Nbd2 {[%clk 0:02:52]}  c5 {[%clk 0:03:00]} 6. b3 {[%clk 0:02:51]}  Nc6 {[%clk 0:03:00]} 7. Bb2 {[%clk 0:02:50]}  Be7 {[%clk 0:03:01]} 8. O-O {[%clk 0:02:49]}  O-O {[%clk 0:03:01]} 9. a3 {[%clk 0:02:46]}  d5 {[%clk 0:02:59]} 10. Ne5 {[%clk 0:02:45]}  Nxe5 {[%clk 0:02:58]} 11. dxe5 {[%clk 0:02:45]}  Nd7 {[%clk 0:02:59]} 12. f4 {[%clk 0:02:30]}  f6 {[%clk 0:02:59]} 13. Qh5 {[%clk 0:01:59]}  f5 {[%clk 0:02:59]} 14. g4 {[%clk 0:01:30]}  g6 {[%clk 0:02:37]} 15. Qh3 {[%clk 0:01:22]}  Re8 {[%clk 0:02:37]} 16. Nf3 {[%clk 0:01:10]}  Nf8 {[%clk 0:02:33]} 17. Bb5 {[%clk 0:00:58]}  Qc7 {[%clk 0:02:23]} 18. Bxe8 {[%clk 0:00:57]}  Rxe8 {[%clk 0:02:23]} 19. gxf5 {[%clk 0:00:42]}  exf5 {[%clk 0:02:23]} 20. Rad1 {[%clk 0:00:32]}  Ne6 {[%clk 0:02:23]} 21. Nh4 {[%clk 0:00:27]}  d4 {[%clk 0:02:11]} 22. Nxf5 {[%clk 0:00:22]}  gxf5 {[%clk 0:02:11]} 23. Qxf5 {[%clk 0:00:23]}  Qc6 {[%clk 0:02:10]} 24. e4 {[%clk 0:00:11]}  Rf8 {[%clk 0:02:06]} 25. Qg4+ {[%clk 0:00:11]}  Kh8 {[%clk 0:02:07]} 26. Qf3 {[%clk 0:00:05]}  Rxf4 {[%clk 0:02:03]} 27. Qxf4 {[%clk 0:00:04]}  Nxf4 {[%clk 0:02:04]} 28. Rxf4 {[%clk 0:00:04]}  Bg5 {[%clk 0:02:02]} 29. Rg4 {[%clk 0:00:02]}  Be3+ {[%clk 0:02:01]} 30. Kg2 {[%clk 0:00:02]}  h5 {[%clk 0:02:02]} 0-1


[Site "https://www.chess.com"]

[Event "Early Titled Tuesday Blitz | February 8 2022"]
[White "Gaehwiler, Gabriel"]
[Black "Loy, Konstantin"]
[WhiteFideId "1314530"]
[BlackFideId "14122499"]
[WhiteElo "2383"]
[BlackElo "2084"]
[Result "1-0"]
[Round "04"]
[TimeControl "180+1"]
[Date "2022.02.08"]
[WhiteClock "0:00:56"]
[BlackClock "0:00:04"]

1. Nf3 {[%clk 0:03:00]}  c5 {[%clk 0:02:59]} 2. e3 {[%clk 0:02:59]}  g6 {[%clk 0:02:52]} 3. c4 {[%clk 0:03:00]}  Bg7 {[%clk 0:02:51]} 4. d4 {[%clk 0:03:01]}  Nf6 {[%clk 0:02:47]} 5. Be2 {[%clk 0:03:00]}  O-O {[%clk 0:02:43]} 6. Kf1 {[%clk 0:03:00]}  d5 {[%clk 0:02:36]} 7. Nc3 {[%clk 0:03:00]}  cxd4 {[%clk 0:02:31]} 8. exd4 {[%clk 0:03:01]}  Nc6 {[%clk 0:02:30]} 9. h3 {[%clk 0:02:59]}  Bf5 {[%clk 0:02:26]} 10. Be3 {[%clk 0:02:57]}  Rc8 {[%clk 0:02:16]} 11. c5 {[%clk 0:02:54]}  Ne4 {[%clk 0:02:07]} 12. Rc1 {[%clk 0:02:50]}  Nxc3 {[%clk 0:02:05]} 13. Rxc3 {[%clk 0:02:51]}  Qd7 {[%clk 0:01:19]} 14. Kg1 {[%clk 0:02:50]}  Rfd8 {[%clk 0:01:19]} 15. Kh2 {[%clk 0:02:46]}  e5 {[%clk 0:01:19]} 16. Qd2 {[%clk 0:02:42]}  e4 {[%clk 0:01:04]} 17. Ne1 {[%clk 0:02:40]}  Qc7+ {[%clk 0:00:57]} 18. Kg1 {[%clk 0:02:36]}  Be6 {[%clk 0:00:49]} 19. Nc2 {[%clk 0:02:35]}  a5 {[%clk 0:00:46]} 20. b3 {[%clk 0:02:33]}  Rf8 {[%clk 0:00:40]} 21. g3 {[%clk 0:02:31]}  Qd7 {[%clk 0:00:38]} 22. a3 {[%clk 0:02:30]}  Bxh3 {[%clk 0:00:31]} 23. Bf4 {[%clk 0:02:29]}  h5 {[%clk 0:00:26]} 24. b4 {[%clk 0:02:21]}  axb4 {[%clk 0:00:26]} 25. axb4 {[%clk 0:02:22]}  Bg4 {[%clk 0:00:24]} 26. Bb5 {[%clk 0:02:13]}  Bf3 {[%clk 0:00:17]} 27. Rh2 {[%clk 0:02:05]}  Qf5 {[%clk 0:00:15]} 28. Ne3 {[%clk 0:02:03]}  Qe6 {[%clk 0:00:13]} 29. Nc2 {[%clk 0:02:03]}  Ra8 {[%clk 0:00:13]} 30. Rh4 {[%clk 0:01:53]}  Ra2 {[%clk 0:00:11]} 31. Be3 {[%clk 0:01:26]}  Bf6 {[%clk 0:00:06]} 32. Rf4 {[%clk 0:01:21]}  Bg5 {[%clk 0:00:05]} 33. Rxf3 {[%clk 0:01:19]}  exf3 {[%clk 0:00:03]} 34. Bxg5 {[%clk 0:01:10]}  Re8 {[%clk 0:00:03]} 35. Bf1 {[%clk 0:01:05]}  Qg4 {[%clk 0:00:01]} 36. Qf4 {[%clk 0:01:03]}  Qxf4 {[%clk 0:00:01]} 37. Bxf4 {[%clk 0:01:03]}  Re4 {[%clk 0:00:02]} 38. Be3 {[%clk 0:01:02]}  Rb2 {[%clk 0:00:02]} 39. b5 {[%clk 0:00:58]}  Nb4 {[%clk 0:00:02]} 40. Nxb4 {[%clk 0:00:57]}  Rxb4 {[%clk 0:00:03]} 41. c6 {[%clk 0:00:58]}  bxc6 {[%clk 0:00:03]} 42. bxc6 {[%clk 0:00:59]}  Re8 {[%clk 0:00:03]} 43. Rc5 {[%clk 0:00:57]}  Rc8 {[%clk 0:00:03]} 44. c7 {[%clk 0:00:56]}  Rb7 {[%clk 0:00:03]} 45. Bf4 {[%clk 0:00:57]}  Rcxc7 {[%clk 0:00:04]} 46. Rxc7 {[%clk 0:00:56]} 1-0


[Site "https://www.chess.com"]

[Event "Early Titled Tuesday Blitz | February 8 2022"]
[White "Garriga Cazorla, Pere"]
[Black "Kiolbasa, Oliwia"]
[WhiteFideId "32011601"]
[BlackFideId "1154613"]
[WhiteElo "2458"]
[BlackElo "2190"]
[Result "1-0"]
[Round "04"]
[TimeControl "180+1"]
[Date "2022.02.08"]
[WhiteClock "0:00:17"]
[BlackClock "0:00:17"]

1. d4 {[%clk 0:03:00]}  d5 {[%clk 0:02:59]} 2. c4 {[%clk 0:03:00]}  e6 {[%clk 0:02:59]} 3. Nf3 {[%clk 0:03:00]}  Nf6 {[%clk 0:02:59]} 4. g3 {[%clk 0:03:01]}  dxc4 {[%clk 0:03:00]} 5. Bg2 {[%clk 0:03:01]}  c5 {[%clk 0:03:00]} 6. O-O {[%clk 0:02:59]}  Nc6 {[%clk 0:02:57]} 7. dxc5 {[%clk 0:02:55]}  Qxd1 {[%clk 0:02:57]} 8. Rxd1 {[%clk 0:02:56]}  Bxc5 {[%clk 0:02:56]} 9. Nbd2 {[%clk 0:02:57]}  c3 {[%clk 0:02:56]} 10. bxc3 {[%clk 0:02:58]}  O-O {[%clk 0:02:56]} 11. Nb3 {[%clk 0:02:58]}  Be7 {[%clk 0:02:56]} 12. Nfd4 {[%clk 0:02:57]}  Bd7 {[%clk 0:02:53]} 13. Nb5 {[%clk 0:02:51]}  Rfd8 {[%clk 0:02:50]} 14. Bf4 {[%clk 0:02:48]}  e5 {[%clk 0:02:22]} 15. Bg5 {[%clk 0:02:44]}  Rac8 {[%clk 0:02:22]} 16. c4 {[%clk 0:02:35]}  Be6 {[%clk 0:02:16]} 17. c5 {[%clk 0:02:22]}  Bxb3 {[%clk 0:02:08]} 18. Rxd8+ {[%clk 0:02:12]}  Rxd8 {[%clk 0:02:03]} 19. axb3 {[%clk 0:02:12]}  Bxc5 {[%clk 0:02:03]} 20. Rc1 {[%clk 0:02:10]}  Bb6 {[%clk 0:01:55]} 21. Bxc6 {[%clk 0:02:08]}  bxc6 {[%clk 0:01:51]} 22. Rxc6 {[%clk 0:02:03]}  Bxf2+ {[%clk 0:01:42]} 23. Kxf2 {[%clk 0:01:56]}  Ne4+ {[%clk 0:01:42]} 24. Ke3 {[%clk 0:01:57]}  Nxg5 {[%clk 0:01:43]} 25. Nxa7 {[%clk 0:01:58]}  Rb8 {[%clk 0:01:41]} 26. b4 {[%clk 0:01:55]}  h5 {[%clk 0:01:39]} 27. b5 {[%clk 0:01:55]}  Kf8 {[%clk 0:01:34]} 28. Kd3 {[%clk 0:01:54]}  Ke7 {[%clk 0:01:34]} 29. Kc4 {[%clk 0:01:52]}  Kd7 {[%clk 0:01:33]} 30. Kd5 {[%clk 0:01:40]}  f6 {[%clk 0:01:25]} 31. b6 {[%clk 0:01:35]}  Rb7 {[%clk 0:01:18]} 32. Rd6+ {[%clk 0:01:27]}  Ke8 {[%clk 0:01:17]} 33. Kc6 {[%clk 0:01:26]}  Ne4 {[%clk 0:01:11]} 34. Rd1 {[%clk 0:01:10]}  Rb8 {[%clk 0:00:53]} 35. b7 {[%clk 0:00:56]}  Nc5 {[%clk 0:00:49]} 36. Kxc5 {[%clk 0:00:54]}  Rxb7 {[%clk 0:00:49]} 37. Nb5 {[%clk 0:00:52]}  Ke7 {[%clk 0:00:47]} 38. Ra1 {[%clk 0:00:49]}  Ke6 {[%clk 0:00:41]} 39. e4 {[%clk 0:00:49]}  g6 {[%clk 0:00:35]} 40. Ra6+ {[%clk 0:00:49]}  Ke7 {[%clk 0:00:35]} 41. Ra7 {[%clk 0:00:48]}  Rxa7 {[%clk 0:00:35]} 42. Nxa7 {[%clk 0:00:49]}  Ke6 {[%clk 0:00:35]} 43. Kc4 {[%clk 0:00:46]}  f5 {[%clk 0:00:35]} 44. Kd3 {[%clk 0:00:46]}  Kf6 {[%clk 0:00:33]} 45. Ke3 {[%clk 0:00:43]}  Kg5 {[%clk 0:00:34]} 46. Nc6 {[%clk 0:00:40]}  Kg4 {[%clk 0:00:26]} 47. Nxe5+ {[%clk 0:00:39]}  Kh3 {[%clk 0:00:26]} 48. Nxg6 {[%clk 0:00:36]}  fxe4 {[%clk 0:00:25]} 49. Kxe4 {[%clk 0:00:14]}  Kxh2 {[%clk 0:00:22]} 50. Kf4 {[%clk 0:00:14]}  Kh3 {[%clk 0:00:20]} 51. Nh4 {[%clk 0:00:15]}  Kh2 {[%clk 0:00:19]} 52. Nf5 {[%clk 0:00:16]}  Kh3 {[%clk 0:00:19]} 53. Kg5 {[%clk 0:00:16]}  h4 {[%clk 0:00:17]} 54. gxh4 {[%clk 0:00:17]} 1-0


[Site "https://www.chess.com"]